bitfinex/quotes_ETHUSD_20240602
["timestamp","ask_amount","ask_price","bid_price","bid_amount"]
[1717300931455,2.62468,3810.0,3809.2,3.05554771]
[1717300932247,2.62468,3810.0,3809.2,3.76454771]
[1717300933629,3.33368,3810.0,3809.2,3.05554771]
[1717300935633,2.62468,3810.0,3809.2,3.76454771]
[1717300936355,12.48,3810.1,3809.2,3.76454771]
[1717300936560,12.48,3810.1,3809.2,6.04724771]
[1717300938864,7.31894969,3810.3,3809.6,2.62493]
[1717300939180,0.55,3810.2,3809.6,2.62493]
[1717300939473,0.55,3810.3,3809.8,0.709]
[1717300939670,0.55,3810.4,3809.8,0.709]
[1717300941773,0.55,3810.4,3809.6,2.958323]
[1717300943443,7.31894969,3810.7,3810.0,2.2827]
[1717300943643,7.31894969,3810.7,3810.2,0.709]
[1717300944975,0.55,3810.6,3810.2,0.709]
[1717300945343,0.55,3810.6,3810.1,2.62453]
[1717300947753,0.55,3810.9,3810.1,2.62453]
[1717300952986,7.31894969,3811.1,3810.4,0.709]
[1717300953184,14.9449,3811.4,3810.4,0.709]
[1717300953384,0.709,3811.3,3810.4,0.709]
[1717300953587,0.709,3810.7,3810.1,2.62456]
[1717300954379,0.55,3810.6,3810.1,2.62456]
[1717300954684,0.55,3810.6,3809.8,0.709]
[1717300954988,0.709,3810.3,3809.3,2.62513]
[1717300955181,0.709,3810.3,3809.4,3.0]
[1717300955483,0.55,3810.2,3809.4,3.0]
[1717300955692,0.55,3810.2,3809.4,0.67644577]
[1717300955880,0.55,3810.2,3809.3,2.62513]
[1717300958289,2.6246,3810.1,3809.3,2.62513]
[1717300958586,0.55,3810.0,3809.3,2.62513]
[1717300959978,0.55,3810.0,3809.6,0.709]
[1717300961456,0.55,3810.0,3809.5,0.709]
[1717300961669,0.55,3810.0,3809.5,1.08544577]
[1717300966104,3.7453,3810.0,3807.9,2.471]
[1717300966261,3.7453,3810.0,3808.9,0.709]
[1717300967389,2.62494,3809.6,3808.6,2.62563]
[1717300967593,2.62511,3809.4,3808.6,2.62563]
[1717300967766,2.62511,3809.4,3808.6,3.33463]
[1717300968095,0.55,3809.3,3808.6,3.33463]
[1717300971272,0.55,3809.3,3808.8,0.709]
[1717300972694,0.55,3809.3,3808.8,1.042463]
[1717300976336,2.62511,3809.4,3809.0,0.709]
[1717300977185,2.62511,3809.4,3808.8,1.042463]
[1717300984927,2.62511,3809.4,3809.0,0.709]
[1717300985628,7.31894969,3809.7,3809.2,0.709]
[1717300985800,7.31894969,3809.7,3809.3,3.33414]
[1717300988738,4.91188,3810.0,3809.3,3.33414]
[1717300988953,0.55,3809.9,3809.3,3.33414]
[1717300990461,4.91188,3810.0,3809.3,3.33414]
[1717300992137,4.91188,3810.0,3809.5,0.709]
[1717300992353,4.91188,3810.0,3809.3,3.33414]
[1717300992553,4.91188,3810.0,3809.3,3.667554]
[1717300999502,4.91188,3810.0,3809.3,2.958554]
[1717301002065,4.91188,3810.0,3809.4,0.709]
[1717301003880,4.91188,3810.0,3809.3,2.958554]
[1717301004448,4.91188,3810.0,3809.3,0.333414]
[1717301004628,4.91188,3810.0,3809.0,3.33434]
[1717301005831,0.55,3809.9,3809.0,3.33434]
[1717301006531,0.55,3809.9,3809.3,0.709]
[1717301007029,4.91188,3810.0,3809.3,3.0012]
[1717301007446,4.91188,3810.0,3809.5,0.709]
[1717301009978,4.91188,3810.0,3809.0,3.33434]
[1717301010180,4.91188,3810.0,3809.1,0.562654]
[1717301020533,2.62482,3809.8,3809.1,0.562654]
[1717301021597,2.62482,3809.8,3809.0,3.33434]
[1717301022516,2.3266,3809.7,3809.0,2.62534]
[1717301031126,2.3266,3809.7,3809.1,0.709]
[1717301031655,2.3266,3810.0,3809.6,0.709]
[1717301036645,2.3266,3810.0,3809.6,3.33389]
[1717301036843,2.3266,3810.0,3809.6,3.667279]
[1717301037246,9.76634969,3810.2,3809.6,3.667279]
[1717301041253,2.4474,3810.2,3809.6,3.33389]
[1717301041985,2.4474,3810.3,3809.6,3.33389]
[1717301042131,0.55,3810.2,3809.6,3.33389]
[1717301043967,2.4474,3810.1,3809.6,2.62489]
[1717301044173,0.37064,3810.0,3809.6,2.62489]
[1717301044585,0.37064,3810.0,3809.3,2.62515]
[1717301044882,2.4474,3809.8,3809.0,2.62534]
[1717301045255,0.55,3809.7,3809.0,2.62534]
[1717301045476,2.6248,3809.9,3809.3,0.709]
[1717301045682,2.764,3811.4,3809.2,5.10876]
[1717301045683,7.0013413,3810.2,3809.2,5.10876]
[1717301045843,7.0013413,3810.2,3809.5,3.334]
[1717301045844,5.07194,3810.2,3809.5,3.334]
[1717301051719,4.3760013,3810.5,3810.1,0.709]
[1717301052016,1.9294013,3810.5,3810.4,0.709]
[1717301052211,4.72570528,3810.9,3810.4,0.709]
[1717301052212,1.9294013,3810.8,3810.4,0.709]
[1717301052376,4.3760013,3810.9,3810.4,0.709]
[1717301053104,4.3760013,3810.9,3810.2,0.709]
[1717301053402,4.37515618,3810.9,3810.3,2.62446]
[1717301053990,1.92855618,3810.9,3810.3,5.06076]
[1717301054181,7.31894969,3811.0,3810.4,0.709]
[1717301054569,9.24711778,3811.0,3810.4,0.709]
[1717301055945,1.92816809,3811.0,3810.4,0.709]
[1717301056951,1.92816809,3811.0,3810.3,5.06076]
[1717301057118,1.92816809,3811.0,3810.3,2.62446]
[1717301057319,4.55128539,3811.1,3810.3,2.62446]
[1717301057560,1.92732539,3811.0,3810.3,2.62446]
[1717301057859,1.92732539,3811.0,3810.3,3.198666]
[1717301058228,4.55128539,3811.1,3810.3,3.198666]
[1717301067271,2.62396,3811.1,3810.3,3.198666]
[1717301072241,2.62396,3811.1,3810.3,2.62446]
[1717301072643,2.4466,3811.2,3810.3,3.33346]
[1717301074257,1.92594328,3811.3,3810.5,2.62426]
[1717301074555,9.24493584,3811.4,3810.6,3.380026]
[1717301074885,0.55,3811.3,3810.6,3.1176]
[1717301075681,0.55,3811.3,3810.7,2.62416]
[1717301075887,7.31894969,3811.4,3810.7,2.62416]
[1717301076052,8.80323327,3811.4,3810.7,2.62416]
[1717301076652,10.72921942,3811.4,3810.7,2.62416]
[1717301077064,8.80323327,3811.4,3810.7,2.62416]
[1717301079486,1.48428358,3811.4,3810.7,2.62416]
[1717301080592,2.3005,3811.2,3810.0,2.2642]
[1717301080890,2.3005,3811.2,3809.3,2.62509]
[1717301080891,2.3005,3810.6,3809.5,2.2642]
[1717301081199,2.60145,3810.6,3810.0,2.62463]
[1717301081486,2.3005,3810.6,3810.0,2.62463]
[1717301082249,3.17434,3810.5,3809.7,2.62487]
[1717301083790,3.17434,3810.5,3809.6,0.709]
[1717301085652,2.62453,3810.3,3809.3,2.6251]
[1717301085867,2.3005,3810.1,3809.4,0.709]
[1717301087271,2.62462,3810.1,3809.4,0.709]
[1717301087472,2.3005,3810.0,3809.4,0.709]
[1717301088907,2.62475,3809.9,3809.2,2.2642]
[1717301089113,2.62475,3809.9,3809.3,0.709]
[1717301091509,2.60638236,3809.9,3809.3,0.709]
[1717301092783,2.60638236,3809.9,3809.2,0.488955]
[1717301092983,2.60638236,3809.9,3809.2,1.197955]
[1717301093798,2.60638236,3809.9,3809.2,0.488955]
[1717301093970,2.60638236,3809.9,3809.2,1.197955]
[1717301095908,2.60638236,3809.9,3809.5,0.709]
[1717301097392,2.60638236,3809.9,3809.2,2.762255]
[1717301097586,2.60638236,3809.9,3809.5,0.709]
[1717301098808,2.60638236,3809.9,3809.2,2.762255]
[1717301099015,2.3784,3809.8,3809.2,0.488955]
[1717301099213,2.3784,3809.8,3809.2,1.197955]
[1717301099424,2.3784,3809.8,3809.3,0.44310451]
[1717301101324,2.3784,3809.8,3809.2,1.197955]
[1717301104920,2.3784,3809.8,3809.0,4.89865]
[1717301105219,2.3784,3809.8,3809.1,0.709]
[1717301109316,2.3784,3809.8,3809.0,4.89865]
[1717301109624,2.3784,3809.8,3809.2,0.709]
[1717301110308,2.62488,3809.7,3809.2,0.709]
[1717301123140,2.4054,3809.6,3809.2,0.709]
[1717301125547,2.4054,3809.6,3809.0,3.33435]
[1717301125747,2.4054,3809.6,3809.1,0.333435]
[1717301129670,2.4054,3809.6,3808.6,2.2733]
[1717301129671,2.4054,3809.6,3808.6,2.62557]
[1717301129870,2.4054,3809.6,3808.8,2.62545]
[1717301130694,2.4054,3809.6,3808.8,3.33445]
[1717301132197,2.4054,3809.6,3808.8,2.62545]
[1717301132392,2.4054,3809.6,3808.8,3.33445]
[1717301132694,2.4054,3809.6,3808.8,3.667895]
[1717301134274,2.62501,3809.5,3808.8,3.667895]
[1717301135680,2.62501,3809.5,3808.8,2.958895]
[1717301135914,2.62501,3809.5,3808.8,3.667895]
[1717301139922,9.24409075,3809.9,3809.4,0.709]
[1717301139923,9.94374969,3809.9,3809.4,0.709]
[1717301140124,9.94374969,3809.9,3809.6,0.709]
[1717301140896,9.94374969,3809.9,3809.3,0.709]
[1717301142789,9.94374969,3809.9,3809.5,0.709]
[1717301143392,7.31894969,3809.9,3809.5,0.709]
[1717301143799,4.35444106,3810.1,3809.5,0.709]
[1717301144806,2.4293,3810.1,3809.5,0.709]
[1717301145334,4.35444106,3810.1,3809.5,0.709]
[1717301146836,1.92514106,3810.0,3809.5,0.709]
[1717301147233,4.35444106,3810.1,3809.5,0.709]
[1717301147539,2.4293,3810.1,3809.4,2.62508]
[1717301150244,4.35444106,3810.1,3809.4,2.62508]
[1717301150610,2.4293,3810.1,3809.4,2.62508]
[1717301163481,2.4293,3810.1,3809.4,2.9847405]
[1717301175028,6.9782187,3810.3,3809.5,3.1894]
[1717301175233,5.04923,3810.3,3809.5,3.1894]
[1717301175436,5.04923,3810.3,3809.7,0.709]
[1717301175437,2.62453,3810.3,3809.7,0.709]
[1717301178938,2.62453,3810.3,3809.9,0.709]
[1717301179638,2.62453,3810.3,3809.6,2.62493]
[1717301182215,2.62453,3810.3,3809.6,3.24232905]
[1717301183356,4.55361891,3810.3,3809.6,3.24232905]
[1717301184162,2.62453,3810.3,3809.6,3.24232905]
[1717301184626,2.62453,3810.3,3809.7,0.709]
[1717301187865,2.62453,3810.3,3809.6,3.24232905]
[1717301188159,2.62453,3810.3,3809.6,2.62493]
[1717301190963,2.62453,3810.3,3809.7,0.709]
[1717301195184,2.3917,3810.2,3809.7,0.709]
[1717301195559,2.3917,3810.2,3809.6,2.62493]
[1717301205453,2.3917,3810.2,3809.4,1.0686605]
[1717301205651,2.3917,3810.2,3809.7,0.709]
[1717301207251,2.3917,3810.2,3809.4,0.3596605]
[1717301209167,4.32126649,3810.2,3809.4,0.3596605]
[1717301214669,2.4531,3810.0,3808.7,2.62556]
[1717301214887,2.4531,3809.8,3808.7,3.33456]
[1717301216186,2.4531,3809.8,3808.9,0.709]
[1717301216345,5.07793,3809.8,3808.9,0.709]
[1717301216549,5.07793,3809.8,3809.1,0.709]
[1717301216787,5.07793,3809.8,3809.3,0.709]
[1717301217790,5.07793,3809.8,3809.0,0.709]
[1717301218655,5.07793,3809.8,3808.9,2.62539]
[1717301218860,5.07793,3809.8,3809.0,0.709]
[1717301219571,5.07793,3809.8,3809.3,0.709]
[1717301221566,5.07793,3809.8,3809.2,0.709]
[1717301222586,5.07793,3809.8,3808.9,5.2747576]
[1717301222587,5.07793,3809.8,3809.1,0.709]
[1717301223192,5.07793,3809.8,3808.9,5.9837576]
[1717301223489,0.578693,3809.7,3808.9,5.67119]
[1717301223697,5.07793,3809.8,3808.9,5.67119]
[1717301225091,1.92956649,3810.0,3809.2,2.3368]
[1717301225390,4.55416649,3810.1,3809.3,3.33414]
[1717301225595,2.6246,3810.1,3809.3,3.33414]
[1717301228875,2.6246,3810.1,3809.3,2.62514]
[1717301234602,4.55416649,3810.1,3809.3,2.62514]
[1717301234932,2.6246,3810.1,3809.4,0.709]
[1717301237476,2.6246,3810.1,3809.3,2.62514]
[1717301237702,2.6246,3810.1,3809.3,3.33414]
[1717301238489,4.55342455,3810.1,3809.3,3.33414]
[1717301238901,4.55342455,3810.1,3809.0,3.0458]
[1717301239104,2.62474,3809.9,3809.0,2.3368]
[1717301241707,2.4935,3809.8,3808.9,2.62536]
[1717301242031,2.4935,3809.8,3809.1,0.709]
[1717301244027,2.4935,3809.8,3808.9,3.120376]
[1717301250638,2.62489,3809.7,3808.9,3.120376]
[1717301252136,2.62489,3809.7,3809.0,0.709]
[1717301274480,2.62489,3809.7,3808.9,3.120376]
[1717301274641,2.62489,3809.7,3808.9,3.829376]
[1717301277686,2.4693,3809.6,3808.9,3.829376]
[1717301281449,2.62489,3809.7,3809.2,0.709]
[1717301283059,2.62489,3809.7,3809.0,0.3829376]
[1717301283379,2.62489,3809.7,3808.9,3.33436]
[1717301283682,2.4693,3809.6,3808.9,3.33436]
[1717301290264,2.4693,3809.6,3809.1,0.709]
[1717301291670,2.4693,3809.6,3808.9,2.62536]
[1717301291875,2.4693,3809.6,3809.0,0.709]
[1717301296581,2.4693,3809.6,3809.2,0.709]
[1717301305315,2.4693,3809.6,3809.1,2.62528]
[1717301305505,2.4693,3809.6,3809.1,3.33428]
[1717301313626,2.4693,3809.6,3809.1,2.62528]
[1717301330439,1.9693,3809.6,3809.1,2.62528]
[1717301343560,1.9693,3809.6,3809.1,3.33428]
[1717301343864,1.9693,3809.6,3809.2,0.333428]
[1717301345518,4.98055,3809.8,3809.2,0.333428]
[1717301350328,4.98055,3809.8,3809.1,2.62528]
[1717301363037,2.4599,3809.7,3809.1,2.62528]
[1717301363241,4.39052807,3809.7,3809.1,2.62528]
[1717301363439,2.4599,3809.6,3809.1,2.62528]
[1717301373378,2.4599,3809.6,3808.8,3.33447]
[1717301373682,2.4599,3809.6,3808.9,0.333447]
[1717301383579,2.4599,3809.6,3809.0,0.709]
[1717301385608,2.4599,3809.6,3808.9,0.333447]
[1717301392435,2.62499,3809.6,3808.9,0.333447]
[1717301392570,2.4431,3809.5,3808.8,2.62547]
[1717301392764,2.4431,3809.4,3808.8,2.62547]
[1717301395603,2.4431,3809.4,3808.6,0.709]
[1717301395773,2.4431,3809.4,3808.7,0.333468]
[1717301397293,2.4431,3809.4,3808.8,0.709]
[1717301400089,2.4431,3809.4,3808.7,0.333468]
[1717301403027,5.06823,3809.4,3808.7,0.333468]
[1717301404925,2.4247,3809.3,3808.7,0.333468]
[1717301405149,2.4247,3809.3,3808.8,0.3668148]
[1717301414282,2.62523,3809.2,3808.5,2.62568]
[1717301414542,2.4247,3809.1,3808.5,2.62568]
[1717301417539,2.4247,3809.1,3808.2,2.62588]
[1717301417753,2.4247,3809.1,3808.2,3.33488]
[1717301418643,2.4247,3809.1,3808.4,0.709]
[1717301420214,2.4036,3808.9,3808.2,2.62588]
[1717301421911,2.4036,3808.9,3807.9,2.62611]
[1717301422108,2.4036,3808.9,3807.9,3.33511]
[1717301422742,2.4036,3808.7,3807.9,2.62611]
[1717301422909,2.4036,3808.7,3807.9,3.33511]
[1717301425454,2.4036,3808.7,3807.9,3.668621]
[1717301426562,0.709,3808.6,3807.9,2.62611]
[1717301426720,2.4036,3808.5,3807.9,2.62611]
[1717301427064,2.4036,3808.3,3807.4,2.62643]
[1717301428449,2.4036,3808.2,3807.5,0.709]
[1717301429326,2.4036,3808.2,3807.7,0.709]
[1717301430131,2.4036,3808.2,3807.4,2.62643]
[1717301430338,2.4036,3808.2,3807.6,0.709]
[1717301430537,2.4036,3808.2,3807.4,3.33543]
[1717301431975,2.97745,3808.2,3807.4,3.33543]
[1717301432172,2.62598,3808.1,3807.4,2.62643]
[1717301432382,2.4036,3808.0,3807.1,2.62666]
[1717301432668,2.4036,3807.8,3807.3,0.709]
[1717301436776,2.4036,3807.8,3807.1,3.33566]
[1717301436979,2.4036,3807.8,3807.1,2.62666]
[1717301437179,2.4036,3807.8,3806.7,2.62688]
[1717301437362,2.4036,3807.8,3806.9,0.709]
[1717301439657,2.62626,3807.7,3806.8,0.511198]
[1717301439887,2.3748,3807.6,3806.8,1.220198]
[1717301440456,2.3748,3807.6,3806.7,2.62688]
[1717301440654,2.3748,3807.6,3806.7,3.33588]
[1717301443779,2.3748,3807.6,3806.7,2.62688]
[1717301443972,2.3748,3807.6,3806.8,0.709]
[1717301446090,2.62642,3807.5,3806.8,0.709]
[1717301446296,2.3748,3807.4,3806.8,0.709]
[1717301451368,2.3748,3807.4,3806.4,2.62714]
[1717301451717,2.4788,3807.2,3806.6,0.709]
[1717301454177,2.4788,3807.2,3806.4,2.62714]
[1717301454385,2.4788,3807.2,3806.5,0.709]
[1717301456784,2.4788,3807.2,3806.4,2.62714]
[1717301457108,2.4788,3807.2,3806.4,3.33614]
[1717301458817,2.4788,3807.2,3806.4,2.62714]
[1717301459610,3.1878,3807.2,3806.4,2.62714]
[1717301459818,2.2666,3807.1,3806.4,2.62714]
[1717301459989,2.2666,3807.1,3806.4,2.960754]
[1717301460193,4.89332,3807.1,3806.4,2.960754]
[1717301460396,0.709,3807.0,3806.4,2.62714]
[1717301461183,4.89332,3807.1,3806.4,2.62714]
[1717301461729,2.2666,3807.0,3806.4,2.62714]
[1717301463488,2.2666,3807.0,3806.1,3.33635]
[1717301463685,2.2666,3807.0,3805.4,3.0]
[1717301463686,0.709,3806.5,3805.8,2.62755]
[1717301464001,2.2666,3806.4,3805.8,2.62755]
[1717301465402,2.2666,3806.4,3805.5,3.33676]
[1717301465722,2.2666,3806.4,3805.5,3.902296]
[1717301466512,2.2666,3806.4,3805.7,0.709]
[1717301467428,2.2666,3806.4,3805.5,2.62776]
[1717301469329,3.33624,3806.3,3805.5,2.62776]
[1717301469525,2.9756,3806.2,3805.5,2.62776]
[1717301470242,2.2666,3806.2,3805.5,2.62776]
[1717301489072,2.4838,3806.1,3805.5,2.62776]
[1717301489948,2.4838,3806.1,3805.2,3.33697]
[1717301490313,2.4838,3806.1,3805.2,3.670667]
[1717301492585,2.4838,3806.1,3805.2,2.961667]
[1717301492790,2.4838,3806.1,3805.3,0.709]
[1717301504668,2.4838,3806.1,3805.2,2.961667]
[1717301505005,2.4838,3806.1,3805.3,0.709]
[1717301508199,2.4838,3806.1,3805.3,1.01105077]
[1717301510084,2.4838,3806.1,3805.3,0.30205077]
[1717301510396,2.4838,3806.1,3805.3,1.01105077]
[1717301520396,2.3257,3805.8,3804.9,2.62817]
[1717301520526,2.62764,3805.7,3804.9,2.62817]
[1717301520732,2.3257,3805.6,3804.9,2.62817]
[1717301521112,2.3257,3805.6,3804.9,3.33717]
[1717301522316,2.62745,3806.0,3805.1,3.337]
[1717301522527,2.62745,3806.0,3805.5,0.709]
[1717301524643,2.3257,3806.1,3805.5,0.709]
[1717301525809,2.3257,3806.1,3805.4,0.709]
[1717301530752,2.3257,3806.1,3805.3,2.62785]
[1717301531132,4.11854208,3806.1,3805.3,2.62785]
[1717301531356,2.3257,3806.0,3805.1,0.709]
[1717301532323,2.3257,3805.8,3805.0,2.6281]
[1717301532543,2.3257,3805.8,3805.1,0.709]
[1717301533328,2.3257,3805.8,3805.3,0.709]
[1717301534168,2.3257,3805.8,3805.0,3.3371]
[1717301535434,2.3257,3805.8,3805.0,2.6281]
[1717301535577,2.3257,3805.8,3805.1,0.709]
[1717301537991,1.93059884,3806.2,3805.3,2.2719]
[1717301538288,9.24954853,3807.1,3806.3,2.62722]
[1717301538498,2.63959884,3807.5,3806.5,2.62707]
[1717301538851,4.88367978,3807.3,3806.5,2.62707]
[1717301539047,1.93059884,3807.3,3806.5,2.62707]
[1717301539287,0.43351988,3807.2,3806.5,2.62707]
[1717301541406,3.1136,3807.4,3806.5,2.62707]
[1717301548968,3.0636,3807.4,3806.5,2.62707]
[1717301549197,2.3546,3807.4,3806.7,0.709]
[1717301550159,2.3546,3807.4,3806.9,0.709]
[1717301551057,2.3546,3807.4,3806.7,0.709]
[1717301551264,2.3546,3807.4,3806.7,1.269797]
[1717301554571,2.3046,3807.4,3806.7,1.269797]
[1717301559213,2.3046,3807.4,3806.8,0.709]
[1717301560893,2.3046,3807.4,3807.0,0.709]
[1717301561173,5.04329,3807.6,3806.8,0.709]
[1717301561371,0.55,3807.5,3806.8,0.709]
[1717301561683,0.55,3807.5,3806.8,1.3258577]
[1717301563088,0.55,3807.5,3806.8,0.6168577]
[1717301563718,0.55,3807.5,3806.7,2.62688]
[1717301565626,0.55,3807.5,3806.9,0.709]
[1717301567327,1.11787676,3807.5,3806.9,0.709]
[1717301567737,0.55,3807.5,3806.9,0.709]
[1717301568407,1.11786647,3807.5,3806.9,0.709]
[1717301568596,1.11786647,3807.5,3806.7,2.62688]
[1717301571461,0.55,3807.5,3806.7,2.62688]
[1717301571756,1.1178642,3807.5,3806.7,2.62688]
[1717301576639,0.55,3807.5,3806.7,2.62688]
[1717301576847,1.11787107,3807.5,3806.8,0.709]
[1717301583269,3.04143436,3807.5,3806.8,0.709]
[1717301583496,2.47356329,3807.5,3806.8,0.709]
[1717301585417,0.56787017,3807.4,3806.8,0.709]
[1717301586310,2.345,3807.3,3806.8,0.709]
[1717301586771,2.345,3807.3,3807.0,0.709]
[1717301586974,1.92356329,3807.4,3807.0,0.709]
[1717301587175,0.55,3807.5,3807.0,0.709]
[1717301587505,3.04142907,3807.5,3807.0,0.709]
[1717301587699,2.47356329,3807.5,3807.2,0.709]
[1717301588047,2.47356329,3807.5,3806.8,2.9665]
[1717301589102,2.47356329,3807.5,3806.8,0.709]
[1717301590624,2.47356329,3807.5,3807.1,0.709]
[1717301590785,0.55,3807.5,3807.1,0.709]
[1717301591305,3.0414264,3807.5,3807.1,0.709]
[1717301591505,2.47356329,3807.5,3807.1,0.709]
[1717301591725,2.47356329,3807.5,3806.9,0.709]
[1717301592128,0.56787028,3807.4,3806.9,0.709]
[1717301593438,2.47356329,3807.5,3806.9,0.709]
[1717301594297,0.56786836,3807.4,3806.9,0.709]
[1717301595145,2.47356329,3807.5,3806.9,0.709]
[1717301595311,0.56786886,3807.4,3806.9,0.709]
[1717301597747,2.47356329,3807.5,3806.9,0.709]
[1717301597902,0.56786853,3807.4,3806.9,0.709]
[1717301598103,2.49143182,3807.4,3806.9,0.709]
[1717301598306,2.47356329,3807.5,3806.9,0.709]
[1717301598533,0.56786979,3807.4,3806.9,0.709]
[1717301598737,0.56786979,3807.4,3806.7,2.62688]
[1717301599045,2.49143308,3807.4,3806.7,3.33588]
[1717301599431,0.56786979,3807.3,3806.7,3.33588]
[1717301601559,2.2897,3807.2,3806.7,3.33588]
[1717301602457,2.2897,3807.2,3807.0,0.709]
[1717301602675,6.83977329,3807.4,3807.0,0.709]
[1717301603340,2.62651,3807.4,3807.0,0.709]
[1717301603738,4.55007329,3807.4,3807.0,0.709]
[1717301605624,4.55007329,3807.4,3806.8,0.709]
[1717301607500,4.55820319,3807.4,3806.8,0.709]
[1717301607973,2.62651,3807.4,3807.0,0.709]
[1717301608357,4.55820319,3807.4,3807.0,0.709]
[1717301608733,1.93169319,3807.4,3807.0,0.709]
[1717301608934,4.77139319,3807.5,3807.0,0.709]
[1717301609458,0.56786076,3807.4,3807.0,0.709]
[1717301609833,0.56786093,3807.4,3807.0,0.709]
[1717301610675,4.77141211,3807.5,3807.0,0.709]
[1717301610873,0.56786076,3807.4,3807.0,0.709]
[1717301611583,2.49958828,3807.4,3807.0,0.709]
[1717301611746,1.93172752,3807.4,3807.0,0.709]
[1717301613451,2.8397,3807.5,3807.0,0.709]
[1717301613651,2.4995997,3807.4,3807.0,0.709]
[1717301613853,1.931738,3807.4,3807.0,0.709]
[1717301615354,1.931738,3807.4,3806.7,2.62688]
[1717301615558,2.49961808,3807.3,3806.7,2.62688]
[1717301615757,1.931738,3807.3,3806.7,2.62688]
[1717301616993,1.931738,3807.4,3806.7,2.62688]
[1717301621200,5.46613,3807.5,3806.7,2.62688]
[1717301621367,1.93179891,3807.4,3806.7,2.62688]
[1717301621573,2.49967356,3807.4,3806.7,2.62688]
[1717301621784,1.93179891,3807.4,3806.7,2.62688]
[1717301629501,2.49968064,3807.3,3806.7,2.62688]
[1717301629811,1.93179891,3807.3,3806.7,2.62688]
[1717301631508,1.93179891,3807.4,3806.7,2.62688]
[1717301631803,0.56787772,3807.3,3806.7,2.62688]
[1717301633009,2.49958143,3807.3,3806.7,2.62688]
[1717301633369,1.93170371,3807.3,3806.7,2.62688]
[1717301633577,1.9316705,3807.3,3806.6,0.709]
[1717301634494,5.46613,3807.5,3806.6,0.709]
[1717301635214,2.62654,3807.3,3806.6,0.709]
[1717301641399,2.62654,3807.3,3806.6,1.268362]
[1717301643155,2.62654,3807.3,3807.1,0.709]
[1717301644219,2.62654,3807.3,3807.0,2.4303]
[1717301647304,2.62654,3807.3,3807.0,3.1393]
[1717301655977,2.62654,3807.3,3807.0,2.4303]
[1717301660483,2.62654,3807.3,3806.7,2.3368]
[1717301669183,2.62654,3807.3,3806.7,3.0458]
[1717301672825,2.62654,3807.3,3806.7,0.709]
[1717301676940,2.41,3807.2,3806.6,2.62696]
[1717301677160,2.62654,3807.3,3806.6,2.3872]
[1717301677318,2.62654,3807.3,3806.9,0.709]
[1717301678760,5.03654,3807.3,3806.6,5.72319]
[1717301678967,5.595194,3807.3,3806.6,5.72319]
[1717301679169,5.595194,3807.3,3806.6,3.33599]
[1717301680460,5.03654,3807.3,3806.6,3.33599]
[1717301680874,5.03654,3807.3,3806.6,2.62699]
[1717301690761,5.03654,3807.3,3806.7,0.709]
[1717301691680,5.03654,3807.3,3806.6,2.62699]
[1717301707494,2.2805,3807.2,3806.3,3.33619]
[1717301707692,2.839154,3807.2,3806.3,3.33619]
[1717301707998,2.2805,3807.2,3806.3,3.33619]
[1717301710493,2.2805,3807.2,3806.7,0.709]
[1717301713723,2.2805,3807.2,3806.5,0.709]
[1717301715613,2.2805,3807.2,3806.3,2.62719]
[1717301716422,0.55,3807.5,3806.3,2.62719]
[1717301716423,2.2805,3807.0,3806.3,2.62719]
[1717301716622,2.4957,3806.8,3806.3,2.62719]
[1717301718341,2.4957,3806.8,3806.0,2.6274]
[1717301718527,2.4957,3806.8,3806.0,3.3364]
[1717301724519,2.4957,3806.8,3806.2,0.709]
[1717301728637,2.4957,3806.6,3806.0,2.6274]
[1717301728846,2.4957,3806.6,3806.1,0.709]
[1717301740664,2.4957,3806.6,3806.0,2.6274]
[1717301747073,2.3614,3806.5,3806.0,2.6274]
[1717301749173,2.3614,3806.5,3805.9,0.709]
[1717301751053,2.3614,3806.5,3805.7,3.33662]
[1717301751582,2.3614,3806.4,3805.7,2.62762]
[1717301751954,2.3614,3806.4,3805.6,0.709]
[1717301752668,2.3614,3806.4,3805.8,0.709]
[1717301753374,2.3614,3806.4,3805.6,0.709]
[1717301755374,2.3614,3806.4,3805.8,0.709]
[1717301758005,2.3614,3806.4,3805.4,2.62782]
[1717301758196,2.3614,3806.4,3805.7,0.709]
[1717301767987,7.31894969,3806.8,3806.2,3.33624]
[1717301768171,7.31894969,3806.8,3806.6,0.709]
[1717301768379,2.62668,3807.1,3806.4,0.709]
[1717301768613,0.56793911,3807.0,3806.4,0.709]
[1717301769013,2.62668,3807.1,3806.4,0.709]
[1717301769322,3.91869297,3807.1,3806.4,0.709]
[1717301770028,2.62668,3807.1,3806.4,0.709]
[1717301771384,2.2655,3807.2,3806.4,0.709]
[1717301771589,2.2655,3807.2,3806.8,0.709]
[1717301771991,2.2655,3807.2,3806.6,0.709]
[1717301772421,2.2655,3807.2,3806.6,3.33595]
[1717301772626,9.58444969,3807.4,3806.6,3.33595]
[1717301773679,2.2655,3807.4,3806.6,3.33595]
[1717301774543,2.2655,3807.4,3807.0,0.709]
[1717301775430,2.2655,3807.4,3806.8,0.709]
[1717301776319,2.2655,3807.4,3806.6,3.897235]
[1717301780431,2.2655,3807.4,3806.8,0.709]